bitfinex-derivatives/quotes_ETHF0:USTF0_20240817
["timestamp","ask_amount","ask_price","bid_price","bid_amount"]
[1723902051650,1.4319092,2603.4,2603.3,4.83543175]
[1723902052054,1.4319092,2603.4,2603.3,4.22737133]
[1723902053050,1.4319092,2603.4,2603.3,4.83542802]
[1723902053452,1.4319092,2603.4,2603.3,2.91486968]
[1723902053648,1.4319092,2603.4,2603.3,4.22729876]
[1723902054057,1.4319092,2603.4,2603.3,3.69845048]
[1723902054253,1.4319092,2603.4,2603.3,4.83518637]
[1723902055265,1.4319092,2603.4,2603.3,4.22712923]
[1723902057361,0.00425658,2603.4,2603.3,28.86298899]
[1723902057559,0.00576026,2603.6,2603.5,1.44016]
[1723902057760,0.00576026,2603.6,2603.5,14.53968531]
[1723902057963,0.00576026,2603.6,2603.5,35.74819823]
[1723902058259,0.00576026,2603.6,2603.5,38.25754713]
[1723902058463,0.00576026,2603.6,2603.5,38.25659166]
[1723902058665,0.00957716,2603.6,2603.5,38.25659166]
[1723902058849,0.00957716,2603.6,2603.5,37.39036251]
[1723902059054,0.00957716,2603.6,2603.5,38.25660019]
[1723902059460,0.00957716,2603.6,2603.5,35.74680808]
[1723902060050,0.00957716,2603.6,2603.5,20.9770604]
[1723902060257,1.43722978,2603.6,2603.5,8.32219398]
[1723902060759,1.43722978,2603.6,2603.5,9.76235398]
[1723902060957,1.43722978,2603.6,2603.5,12.21135522]
[1723902061162,1.43722978,2603.6,2603.5,12.21138431]
[1723902061463,1.43722978,2603.6,2603.5,12.21131079]
[1723902062450,1.43722978,2603.6,2603.5,15.41907103]
[1723902062658,1.43722978,2603.6,2603.5,12.21127103]
[1723902063370,1.43722978,2603.6,2603.5,11.68264575]
[1723902063565,1.43722978,2603.6,2603.5,10.24248575]
[1723902063769,0.86113153,2603.6,2603.5,9.76236914]
[1723902064668,0.86491198,2603.6,2603.5,9.76236914]
[1723902065053,0.86491198,2603.6,2603.5,9.42471539]
[1723902065268,0.86491198,2603.6,2603.5,9.76238777]
[1723902067067,0.86491198,2603.6,2603.5,7.98455539]
[1723902067264,0.86491198,2603.6,2603.5,8.32222759]
[1723902067456,0.86491198,2603.6,2603.5,9.42471539]
[1723902068074,0.86491198,2603.6,2603.5,9.76238879]
[1723902069266,0.86491198,2603.6,2603.5,8.32222879]
[1723902069467,0.86491198,2603.6,2603.5,9.76238879]
[1723902069974,0.86491198,2603.6,2603.5,8.32222959]
[1723902070170,0.86491198,2603.6,2603.5,7.98455539]
[1723902070471,0.86491198,2603.6,2603.5,8.32223049]
[1723902070972,0.86491198,2603.6,2603.5,9.76239049]
[1723902071374,0.86491198,2603.6,2603.5,8.32223049]
[1723902071675,0.86491198,2603.6,2603.5,7.98455539]
[1723902071874,0.86491198,2603.6,2603.5,9.42823084]
[1723902072069,2.30502198,2603.6,2603.5,9.42823084]
[1723902072269,1.44021,2603.5,2603.4,1.106]
[1723902072472,1.79221,2603.5,2603.4,1.106]
[1723902072778,2.65334153,2603.5,2603.4,1.106]
[1723902073770,1.44022,2603.4,2603.3,0.00576026]
[1723902073967,2.64955153,2603.4,2603.3,0.00576026]
[1723902074370,2.64955153,2603.4,2603.0,0.33771547]
[1723902074675,0.86113153,2602.8,2602.6,5.378]
[1723902074870,1.23493153,2602.7,2602.6,7.34742305]
[1723902075066,1.23493153,2602.7,2602.6,11.11059705]
[1723902075267,1.23493153,2602.7,2602.6,9.60603676]
[1723902076061,1.23493153,2602.7,2602.6,5.71572797]
[1723902077369,1.23493153,2602.7,2602.6,7.15639797]
[1723902077773,1.23493153,2602.7,2602.6,6.81867]
[1723902077968,1.23493153,2602.7,2602.6,7.15641221]
[1723902078477,1.23493153,2602.7,2602.6,9.07739532]
[1723902078679,1.23493153,2602.7,2602.6,7.15641221]
[1723902079880,1.23493153,2602.7,2602.6,9.07740264]
[1723902080470,1.23493153,2602.7,2602.6,8.16550177]
[1723902081180,1.23493153,2602.7,2602.6,7.63673264]
[1723902081378,1.23493153,2602.7,2602.6,8.16550702]
[1723902081677,1.23493153,2602.7,2602.6,9.60617702]
[1723902081875,1.23493153,2602.7,2602.6,9.60617121]
[1723902083468,1.23493153,2602.7,2602.6,11.1107315]
[1723902084275,0.86113153,2602.7,2602.6,14.37386542]
[1723902084470,0.354,2602.8,2602.7,1.44061]
[1723902084775,1.21513153,2602.8,2602.7,5.73344891]
[1723902085791,1.21513153,2602.8,2602.7,5.3956761]
[1723902086081,1.21513153,2602.8,2602.7,6.34152226]
[1723902086474,1.21513153,2602.8,2602.7,6.34152341]
[1723902086870,1.21513153,2602.8,2602.7,5.73339509]
[1723902087179,1.21513153,2602.8,2602.7,6.34152496]
[1723902087477,1.21513153,2602.8,2602.7,4.83618726]
[1723902087676,1.21513153,2602.8,2602.7,6.34187557]
[1723902087883,1.21513153,2602.8,2602.7,4.83618726]
[1723902088186,1.21513153,2602.8,2602.7,6.34186762]
[1723902088374,1.21513153,2602.8,2602.7,4.83618726]
[1723902088978,1.44392045,2603.6,2603.2,1.44031]
[1723902089173,0.86113153,2603.1,2603.0,2.94602449]
[1723902089372,0.86113153,2603.1,2603.0,4.22752013]
[1723902089574,0.86113153,2603.1,2603.0,13.84796723]
[1723902089775,0.86113153,2603.1,2603.0,12.98152813]
[1723902090080,0.86113153,2603.1,2603.0,13.84794218]
[1723902091380,0.86113153,2603.1,2603.0,14.4560346]
[1723902091578,0.86113153,2603.1,2603.0,13.84794218]
[1723902091778,0.86113153,2603.1,2603.0,14.4560378]
[1723902092080,0.86113153,2603.1,2603.0,12.95045331]
[1723902092277,0.3687,2603.3,2603.1,1.44037]
[1723902092475,0.3687,2603.3,2603.2,0.33770326]
[1723902092677,0.3687,2603.3,2603.2,8.47126634]
[1723902093185,0.3687,2603.3,2603.2,0.337699]
[1723902093186,1.80898,2603.3,2603.2,0.337699]
[1723902093880,0.3687,2603.3,2603.2,1.44370666]
[1723902094571,1.80898,2603.3,2603.2,0.33770666]
[1723902094772,1.80898,2603.3,2603.2,1.44370666]
[1723902097773,1.80898,2603.3,2603.2,1.44372222]
[1723902101780,1.80898,2603.3,2603.2,1.106]
[1723902101985,1.80898,2603.3,2603.2,1.44371422]
[1723902102284,5.65058,2603.3,2603.2,1.44371422]
[1723902103089,0.3687,2603.3,2603.2,2.88404422]
[1723902103786,0.3687,2603.3,2603.2,3.41274574]
[1723902104375,0.3687,2603.3,2603.2,5.33336964]
[1723902105384,0.3687,2603.3,2603.2,6.83946736]
[1723902105775,0.3687,2603.3,2603.2,6.83944083]
[1723902106185,0.3687,2603.3,2603.2,5.33334311]
[1723902107790,0.3687,2603.3,2603.2,6.83944083]
[1723902107979,0.3687,2603.3,2603.2,5.33333523]
[1723902108289,0.3687,2603.3,2603.2,3.41271921]
[1723902108483,1.80898,2603.3,2603.2,0.33769415]
[1723902108692,5.65058,2603.3,2603.2,1.44369415]
[1723902110178,5.65058,2603.3,2603.2,1.106]
[1723902110380,13.19686,2603.3,2603.2,0.337715]
[1723902110584,1.4405,2602.9,2602.7,2.61209772]
[1723902110783,0.7127,2602.8,2602.7,1.50609772]
[1723902111087,0.7127,2602.8,2602.7,4.56361705]
[1723902112382,0.3679,2602.8,2602.7,7.11022705]
[1723902112583,0.3679,2602.8,2602.7,7.61141698]
[1723902113185,0.3679,2602.8,2602.7,5.60397775]
[1723902113385,0.3679,2602.8,2602.7,7.61141698]
[1723902113781,0.3679,2602.8,2602.7,6.4749214]
[1723902113978,0.3679,2602.8,2602.7,7.61134502]
[1723902114181,0.3679,2602.8,2602.7,5.60390579]
[1723902114592,0.3679,2602.8,2602.7,7.61134502]
[1723902114992,0.3679,2602.8,2602.7,5.60390579]
[1723902115987,0.3679,2602.8,2602.7,7.61134502]
[1723902116192,0.3679,2602.8,2602.7,5.60390579]
[1723902116394,0.3679,2602.8,2602.7,7.61134502]
[1723902117297,0.3679,2602.8,2602.7,7.61137996]
[1723902118099,0.3679,2602.8,2602.7,11.45325855]
[1723902118485,0.3679,2602.8,2602.7,7.61137996]
[1723902118683,0.3679,2602.8,2602.7,6.17076996]
[1723902118894,0.3679,2602.8,2602.7,5.60394073]
[1723902119787,0.3679,2602.8,2602.7,7.61137996]
[1723902119984,0.3679,2602.8,2602.7,6.17076996]
[1723902120292,0.3679,2602.8,2602.7,4.16333073]
[1723902120892,0.3679,2602.8,2602.7,4.16344597]
[1723902121093,0.3679,2602.8,2602.7,6.47506164]
[1723902121301,0.3679,2602.8,2602.7,10.01278488]
[1723902121489,0.3679,2602.8,2602.7,4.16350297]
[1723902121688,0.3679,2602.8,2602.7,6.1709422]
[1723902122501,0.3679,2602.8,2602.7,7.94893422]
[1723902122796,0.3679,2602.8,2602.7,6.50832422]
[1723902123690,0.0190405,2602.8,2602.7,6.50832422]
[1723902124697,1.80678,2603.0,2602.7,7.94893422]
[1723902124887,1.80678,2603.0,2602.9,1.106]
[1723902125088,1.80678,2603.0,2602.9,3.89271276]
[1723902125292,5.64838,2603.0,2602.9,3.89265775]
[1723902125490,5.64838,2603.0,2602.9,3.89269319]
[1723902126088,5.64838,2603.0,2602.9,1.97170035]
[1723902126290,5.64838,2603.0,2602.9,2.97810049]
[1723902126687,5.64838,2603.0,2602.9,2.97810541]
[1723902126895,6.00658,2603.0,2602.9,2.97810347]
[1723902128096,6.00658,2603.0,2602.9,2.11240014]
[1723902128296,2.16498,2603.0,2602.9,4.89903578]
[1723902128696,6.00658,2603.0,2602.9,4.89903578]
[1723902128989,6.00658,2603.0,2602.9,4.03333113]
[1723902129193,6.00658,2603.0,2602.9,2.97808303]
[1723902129493,2.16498,2603.0,2602.9,4.89904285]
[1723902129698,6.00658,2603.0,2602.9,4.89904285]
[1723902129893,2.16498,2603.0,2602.9,4.89901415]
[1723902130089,6.00658,2603.0,2602.9,4.89901415]
[1723902130412,6.00658,2603.0,2602.9,4.89903522]
[1723902131598,6.00658,2603.0,2602.9,2.97808303]
[1723902131796,6.00658,2603.0,2602.9,4.89903318]
[1723902132693,6.00658,2603.0,2602.9,4.8990126]
[1723902133207,6.00658,2603.0,2602.9,4.89901055]
[1723902133992,2.16498,2603.0,2602.9,2.97808098]
[1723902134999,2.16498,2603.0,2602.9,2.9780947]
[1723902135794,2.16498,2603.0,2602.9,2.44977853]
[1723902135996,2.16498,2603.0,2602.9,2.9780965]
[1723902136903,2.16498,2603.0,2602.9,4.89905734]
[1723902137106,2.16498,2603.0,2602.9,2.9780965]
[1723902137501,6.00658,2603.0,2602.9,1.34377853]
[1723902137807,6.00658,2603.0,2602.9,0.33737839]
[1723902138007,9.5661,2603.0,2602.9,0.52831677]
[1723902138194,1.4405,2602.9,2602.8,1.00629393]
[1723902138507,6.7226,2602.9,2602.8,1.00629393]
[1723902138805,11.7226,2602.9,2602.8,1.00629393]
[1723902139008,1.44055,2602.8,2602.7,1.00629393]
[1723902139198,7.8295,2602.8,2602.7,1.00629393]
[1723902139504,1.44061,2602.7,2602.6,1.00629393]
[1723902139708,1.44061,2602.7,2602.5,1.50961215]
[1723902139709,1.44067,2602.6,2602.5,1.00629393]
[1723902139906,2.16787,2602.6,2602.5,2.92761266]
[1723902140199,6.01027,2602.6,2602.5,1.92131873]
[1723902141193,6.01027,2602.6,2602.5,2.92755217]
[1723902141399,2.16787,2602.6,2602.5,2.92755343]
[1723902141603,6.01027,2602.6,2602.5,1.92131873]
[1723902142205,6.01027,2602.6,2602.5,2.92748711]
[1723902142803,2.16787,2602.6,2602.5,3.43093088]
[1723902143500,2.16787,2602.6,2602.5,1.00613295]
[1723902143905,6.01027,2602.6,2602.5,1.00613295]
[1723902145713,2.16787,2602.6,2602.5,2.92736069]
[1723902146107,6.01027,2602.6,2602.5,1.00613295]
[1723902146505,2.16787,2602.6,2602.5,2.92738425]
[1723902146705,0.7272,2602.6,2602.5,4.36810425]
[1723902146902,4.5696,2602.6,2602.5,5.97758345]
[1723902147097,0.7272,2602.6,2602.5,6.58578782]
[1723902147302,4.5696,2602.6,2602.5,5.97758345]
[1723902147509,0.7272,2602.6,2602.5,5.97758345]
[1723902147812,0.7272,2602.6,2602.5,3.0272513]
[1723902148111,6.01027,2602.6,2602.5,4.03324312]
[1723902148311,4.5696,2602.6,2602.5,4.03324312]
[1723902148502,4.5696,2602.6,2602.5,5.47395066]
[1723902148911,4.5696,2602.6,2602.5,4.46795884]
[1723902149212,0.7272,2602.6,2602.5,4.46795884]
[1723902149411,4.5696,2602.6,2602.5,4.46795884]
[1723902149608,4.5696,2602.6,2602.5,5.97757099]
[1723902149999,4.5696,2602.6,2602.5,6.31462593]
[1723902150913,0.7272,2602.6,2602.5,6.31462593]
[1723902151409,4.5696,2602.6,2602.5,6.92283787]
[1723902151601,0.7272,2602.6,2602.5,6.92283787]
[1723902151803,4.5696,2602.6,2602.5,6.92283787]
[1723902152217,0.7272,2602.6,2602.5,6.92283787]
[1723902152914,0.7272,2602.6,2602.5,5.07617078]
[1723902153213,0.7272,2602.6,2602.5,6.92269257]
[1723902153509,0.7272,2602.6,2602.5,5.41318999]
[1723902153817,0.7272,2602.6,2602.5,7.42062922]
[1723902154518,0.7272,2602.6,2602.5,5.41318999]
[1723902155508,2.16787,2602.6,2602.5,3.97246999]
[1723902155809,2.16787,2602.6,2602.5,4.37654308]
[1723902156013,0.7272,2602.6,2602.5,4.37654308]
[1723902156607,2.16787,2602.6,2602.5,4.37654308]
[1723902156802,0.7272,2602.6,2602.5,4.37654308]
[1723902157106,2.16787,2602.6,2602.5,4.37654308]
[1723902157408,2.16787,2602.6,2602.5,4.37655711]
[1723902157914,2.16787,2602.6,2602.5,2.45534465]
[1723902158114,2.16787,2602.6,2602.5,4.37656301]
[1723902159118,2.16787,2602.6,2602.5,4.37652598]
[1723902159505,2.16787,2602.6,2602.5,2.86645289]
[1723902159906,2.16787,2602.6,2602.5,4.37663642]
[1723902160106,2.16787,2602.6,2602.5,2.86645289]
[1723902160302,0.7272,2602.6,2602.5,4.37663436]
[1723902160523,0.7272,2602.6,2602.5,4.30717289]
[1723902160710,0.7272,2602.6,2602.5,5.41317289]
[1723902161514,0.7272,2602.6,2602.5,7.42058787]
[1723902162025,0.7272,2602.6,2602.5,5.41314864]
[1723902162211,0.7272,2602.6,2602.5,3.97242864]
[1723902162410,0.7272,2602.6,2602.5,5.41314864]
[1723902162721,0.7272,2602.6,2602.5,5.41310861]
[1723902163717,0.7272,2602.6,2602.5,7.76944784]
[1723902164819,0.3529,2602.6,2602.5,7.76944784]
[1723902165210,0.3529,2602.6,2602.5,5.76200861]
[1723902165411,0.3529,2602.6,2602.5,5.76201404]
[1723902167629,0.3529,2602.6,2602.5,5.76203183]
[1723902167822,0.3529,2602.6,2602.5,11.61161774]
[1723902168426,0.3529,2602.6,2602.5,7.76947106]
[1723902168623,0.3529,2602.6,2602.5,11.61173139]
[1723902170739,0.3529,2602.6,2602.5,7.76947106]
[1723902171122,0.3529,2602.6,2602.5,11.6117177]
[1723902172130,0.3529,2602.6,2602.5,7.42057106]
[1723902172332,0.3529,2602.6,2602.5,7.42059438]
[1723902172533,0.3529,2602.6,2602.5,11.26288405]
[1723902172923,0.3529,2602.6,2602.5,7.42059438]
[1723902173326,0.3529,2602.6,2602.5,11.26284574]
[1723902173525,0.3529,2602.6,2602.5,11.26278965]
[1723902173727,0.3529,2602.6,2602.5,10.31753691]
[1723902174028,0.3529,2602.6,2602.5,11.26277128]
[1723902175127,0.3568,2602.9,2602.7,1.44058]
[1723902175330,0.3568,2602.9,2602.8,4.37712722]
[1723902175331,2.1469,2602.9,2602.8,4.37712722]
[1723902175527,0.7064,2602.9,2602.8,4.30696678]
[1723902175724,5.9885,2602.9,2602.8,2.86641678]
[1723902176224,5.9885,2602.9,2602.8,4.37712722]
[1723902177126,5.9885,2602.9,2602.8,4.37700231]
[1723902177734,2.1469,2602.9,2602.8,4.03995889]
[1723902177924,2.1469,2602.9,2602.8,4.37698427]
[1723902178336,5.9885,2602.9,2602.8,4.03994686]
[1723902178536,2.1469,2602.9,2602.8,4.37698246]
[1723902178936,5.9885,2602.9,2602.8,4.37698246]
[1723902179232,7.0945,2602.9,2602.8,3.26552889]
[1723902179537,7.0945,2602.9,2602.8,1.34438858]
[1723902179734,8.535,2602.9,2602.8,1.34438858]
[1723902179935,8.535,2602.9,2602.8,0.3370356]
[1723902182431,8.535,2602.9,2602.8,1.34438858]
[1723902184327,8.535,2602.9,2602.8,3.87373876]
[1723902184834,8.535,2602.9,2602.8,3.26555079]
[1723902185044,8.535,2602.9,2602.8,1.34440288]
[1723902188248,8.535,2602.9,2602.8,1.00735298]
[1723902188539,8.535,2602.9,2602.8,1.34441073]
[1723902188744,8.535,2602.9,2602.8,1.34440559]
[1723902190143,8.535,2602.9,2602.8,1.9526137]
[1723902190436,8.535,2602.9,2602.8,3.87378537]
[1723902190643,3.5874,2602.9,2602.8,3.87378537]
[1723902190834,3.5874,2602.9,2602.8,4.37714283]
[1723902191636,3.5874,2602.9,2602.8,3.87439646]
[1723902191832,4.6934,2602.9,2602.8,1.34501668]
[1723902192032,8.535,2602.9,2602.8,1.34501668]
[1723902192840,8.535,2602.9,2602.8,1.34501999]
[1723902194547,8.535,2602.9,2602.8,0.33705592]
[1723902194748,8.535,2602.9,2602.8,1.34501999]
[1723902195834,8.535,2602.9,2602.8,0.33705592]
[1723902196033,2.88122,2602.7,2602.6,1.00796407]
[1723902196242,7.19502,2602.7,2602.6,0.33708111]
[1723902196434,11.03742,2602.7,2602.6,0.33708111]
[1723902196646,11.03742,2602.7,2602.6,1.34504518]
[1723902196952,1.44072,2602.5,2602.4,1.5164707]
[1723902197248,2.54672,2602.5,2602.4,4.3838504]
[1723902197745,2.89392,2602.5,2602.4,4.3838504]
[1723902198140,2.89392,2602.5,2602.4,2.87212745]
[1723902198341,2.89392,2602.5,2602.4,4.3836635]
[1723902199051,2.89392,2602.5,2602.4,4.38364095]
[1723902202239,8.17704,2602.5,2602.4,3.27129055]
[1723902202551,8.17704,2602.5,2602.4,0.34248272]
[1723902204940,8.17704,2602.5,2602.4,0.34250193]
[1723902205240,8.17704,2602.5,2602.4,0.00576026]
[1723902206354,14.61776,2602.5,2602.4,0.00576026]
[1723902207054,9.61776,2602.5,2602.4,0.00576026]
[1723902208740,14.61776,2602.5,2602.4,0.00576026]
[1723902210049,2.88188,2602.1,2602.0,0.0036029]
[1723902210251,3.98788,2602.1,2602.0,0.34037041]
[1723902210558,3.98788,2602.1,2602.0,0.0036029]
[1723902210748,5.05068,2602.1,2602.0,0.0036029]
[1723902213353,3.2078,2602.2,2602.0,0.0036029]
[1723902213552,2.54691,2602.2,2602.0,0.0036029]
[1723902213856,2.54691,2602.2,2602.0,0.3464029]
[1723902214151,2.54691,2602.2,2602.0,0.6950029]
[1723902215250,1.44094,2602.1,2602.0,0.6950029]
[1723902215452,1.44094,2602.1,2602.0,1.03175028]
[1723902215653,2.54694,2602.1,2602.0,0.6950029]
[1723902216051,2.54694,2602.1,2602.0,1.03174982]
[1723902216360,2.54694,2602.1,2602.0,0.6950029]
[1723902216558,1.106,2602.1,2602.0,0.6950029]
[1723902216849,1.44092,2602.2,2602.0,0.6950029]
[1723902216850,2.54692,2602.2,2602.0,0.6950029]
[1723902217845,2.54694,2602.1,2602.0,0.6950029]
[1723902218158,2.54694,2602.1,2602.0,1.03174943]
[1723902218550,2.54694,2602.1,2602.0,0.6950029]
[1723902221356,2.54694,2602.1,2602.0,1.03175722]
[1723902221555,2.54694,2602.1,2602.0,0.6950029]
[1723902221752,2.54694,2602.1,2602.0,0.0036029]
[1723902222452,2.92004,2602.1,2602.0,0.0036029]
[1723902223662,4.36098,2602.1,2602.0,0.0036029]
[1723902226451,2.92004,2602.1,2602.0,0.0036029]
[1723902228266,4.36098,2602.1,2602.0,0.0036029]
[1723902228766,7.56878,2602.1,2602.0,0.0036029]
[1723902234473,8.86504,2602.1,2602.0,0.0036029]
[1723902234772,2.92004,2602.1,2602.0,0.0036029]
[1723902241379,2.92004,2602.1,2602.0,0.34036921]
[1723902243979,2.92004,2602.1,2602.0,0.0036029]
[1723902244276,2.92004,2602.1,2602.0,0.3403588]
[1723902244678,0.3731,2602.1,2602.0,0.3403588]
[1723902244877,0.3731,2602.1,2602.0,8.89959483]
[1723902245182,2.89702,2602.2,2602.0,10.01201188]
[1723902245183,2.54689,2602.2,2602.0,10.01201188]
[1723902245382,2.90049,2602.2,2602.1,3.26502947]
[1723902245570,2.90049,2602.2,2602.1,2.86652078]
[1723902245876,2.90049,2602.2,2602.1,7.10820354]
[1723902246173,2.90049,2602.2,2602.1,8.22125802]
[1723902246576,2.90049,2602.2,2602.1,6.70972197]
[1723902246776,2.90049,2602.2,2602.1,6.29976699]
[1723902246978,2.90049,2602.2,2602.1,0.3367559]
[1723902247283,2.90049,2602.2,2602.1,1.34366092]
[1723902247475,2.90049,2602.2,2602.1,0.3367559]
[1723902248369,2.90049,2602.2,2602.0,1.01050792]
[1723902248370,1.44094,2602.1,2602.0,1.01050792]
[1723902248568,2.54694,2602.1,2602.0,1.34726131]
[1723902250073,2.54694,2602.1,2602.0,1.34727093]
[1723902252173,2.54694,2602.1,2602.0,1.01050792]
[1723902252382,2.54694,2602.1,2602.0,1.34726739]
[1723902252573,3.98788,2602.1,2602.0,1.34726739]
[1723902252779,6.39014,2602.1,2602.0,1.34726739]
[1723902255278,6.39014,2602.1,2602.0,0.34036237]
[1723902256377,6.39014,2602.1,2602.0,0.34037378]
[1723902256575,2.54694,2602.1,2602.0,0.34037378]
[1723902256778,2.54694,2602.1,2602.0,3.87730606]
[1723902257069,2.54694,2602.1,2602.0,2.87040104]
[1723902257275,2.54694,2602.1,2602.0,4.38193709]
[1723902260281,2.54694,2602.1,2602.0,3.77359575]
[1723902260485,2.54694,2602.1,2602.0,4.38191383]
[1723902260486,1.106,2602.1,2602.0,4.38191383]
[1723902261387,2.9005,2602.2,2602.0,3.22587778]
[1723902261678,1.11176026,2602.3,2602.1,5.81930432]
[1723902261884,1.11176026,2602.3,2602.2,4.37839432]
[1723902262079,2.55259026,2602.3,2602.2,4.72666136]
[1723902263087,4.4667,2602.6,2602.5,1.44072]
[1723902263088,4.113,2602.6,2602.5,1.44072]
[1723902263283,4.4747,2602.6,2602.5,5.41316922]
[1723902263481,4.4747,2602.6,2602.5,10.76599364]
[1723902263689,4.4747,2602.6,2602.5,9.62596922]
[1723902263984,4.4747,2602.6,2602.5,8.51996922]
[1723902264179,4.4747,2602.6,2602.5,7.57493036]
[1723902264379,4.4747,2602.6,2602.5,8.51983056]
[1723902264586,4.113,2602.6,2602.5,10.02954769]
[1723902264774,4.113,2602.6,2602.5,8.51983056]
[1723902265483,4.113,2602.6,2602.5,9.42070112]
[1723902265693,4.113,2602.6,2602.5,10.02892622]
[1723902266082,0.00576026,2602.8,2602.6,1.44066]
[1723902266388,1.106,2602.7,2602.6,2.44671652]
[1723902266591,2.54661,2602.7,2602.6,0.33669358]
[1723902266786,1.44066,2602.6,2602.3,1.00605652]
[1723902267086,1.44083,2602.3,2602.2,1.50909927]
[1723902267281,1.44083,2602.3,2602.2,3.2640064]
[1723902267585,1.44083,2602.3,2602.2,1.34257466]
[1723902268197,1.44089,2602.2,2602.1,1.00584963]
[1723902268485,2.54689,2602.2,2602.1,3.2640913]
[1723902269184,2.54689,2602.2,2602.1,3.26407489]
[1723902269390,1.106,2602.2,2602.1,4.37563697]
[1723902269589,1.106,2602.2,2602.1,2.8665377]
[1723902269986,1.106,2602.2,2602.1,4.37563697]
[1723902270181,1.44086,2602.3,2602.1,4.30746263]
[1723902270182,2.54686,2602.3,2602.1,4.30746263]
[1723902270490,2.54686,2602.3,2602.2,1.34247053]
[1723902271088,0.7093,2602.5,2602.2,2.78332053]
[1723902271288,3.25606,2602.5,2602.3,0.33673721]
[1723902271481,3.25606,2602.5,2602.2,2.44658332]
[1723902271482,3.25605,2602.5,2602.2,2.44658332]
[1723902271688,3.25605,2602.5,2602.3,0.33672846]
[1723902271883,3.25605,2602.5,2602.4,0.33673264]
[1723902272088,3.25605,2602.5,2602.2,2.44658332]
[1723902272289,0.7093,2602.5,2602.3,0.33672526]
[1723902272480,16.68415026,2602.8,2602.4,0.33672526]
[1723902272685,0.35766026,2602.8,2602.5,1.44272526]
[1723902272888,0.35766026,2602.8,2602.6,2.44843783]
[1723902273089,0.35766026,2602.8,2602.7,1.77731451]
[1723902273393,0.00576026,2602.8,2602.7,6.62492937]
[1723902273883,0.00576026,2602.8,2602.7,5.61971451]
[1723902274387,2.90421026,2602.8,2602.7,0.33670451]
[1723902274591,3.25301026,2602.8,2602.7,0.33670451]
[1723902274794,1.44065,2602.7,2602.4,2.80978486]
[1723902274982,2.54666,2602.6,2602.5,0.33670734]
[1723902275894,1.44066,2602.6,2602.5,0.33670734]
[1723902277295,1.44077,2602.4,2602.3,1.00521486]
[1723902277495,1.44083,2602.3,2602.1,3.2078]
[1723902277801,2.14483,2602.3,2602.2,0.33673664]
[1723902277998,2.14483,2602.3,2602.2,0.33673672]
[1723902279089,0.704,2602.3,2602.2,1.77762672]
[1723902279491,0.704,2602.3,2602.2,2.78284158]
[1723902279692,0.704,2602.3,2602.2,1.77762672]
[1723902280008,0.704,2602.3,2602.2,0.33673672]
[1723902280303,0.704,2602.3,2602.2,0.33672712]
[1723902280804,2.14483,2602.3,2602.2,0.33672712]
[1723902282792,0.704,2602.3,2602.2,0.33672712]
[1723902283091,0.704,2602.3,2602.2,4.70416508]
[1723902283296,0.704,2602.3,2602.2,2.78283198]
[1723902283692,0.704,2602.3,2602.2,1.34194198]
[1723902283901,0.704,2602.3,2602.2,2.78283198]
[1723902284092,0.704,2602.3,2602.2,4.70419201]
[1723902284293,0.704,2602.3,2602.2,4.70419027]
[1723902285087,1.44069,2602.6,2602.4,1.44077]
[1723902285290,1.44069,2602.6,2602.0,9.41407637]
[1723902285291,1.44069,2602.6,2602.3,2.79437018]
[1723902285490,1.44072,2602.5,2602.4,0.33671543]
[1723902286600,1.44072,2602.5,2602.2,2.44593018]
[1723902286903,1.44072,2602.5,2602.3,0.33672849]
[1723902287097,1.44072,2602.5,2602.2,2.44593018]
[1723902287299,1.44072,2602.5,2602.3,1.77755738]
[1723902287604,1.44072,2602.5,2602.4,0.33672738]
[1723902288491,1.44072,2602.5,2602.4,0.33672441]
[1723902289397,1.4408,2602.4,2602.2,1.00507018]
[1723902289604,0.6901,2602.3,2602.2,1.00507018]
[1723902289802,1.0521,2602.3,2602.2,1.3418019]
[1723902291200,1.0521,2602.3,2602.2,3.26317693]
[1723902291408,1.0521,2602.3,2602.2,1.3418019]
[1723902291602,2.49293,2602.3,2602.2,1.3418019]
[1723902291999,1.0521,2602.3,2602.2,2.7826919]
[1723902292295,1.0521,2602.3,2602.2,4.37547498]
[1723902292296,0.7062,2602.3,2602.2,4.37547498]
[1723902292705,0.7062,2602.3,2602.2,4.37547092]
[1723902292899,0.7062,2602.3,2602.2,2.86637165]
[1723902293097,0.7062,2602.3,2602.2,5.81634145]
[1723902293505,0.7062,2602.3,2602.2,4.30724218]
[1723902294609,0.7062,2602.3,2602.2,5.81634145]
[1723902295502,0.7062,2602.3,2602.2,9.65954145]
[1723902295696,0.3442,2602.3,2602.2,11.58089598]
[1723902295902,0.3442,2602.3,2602.2,9.65950429]
[1723902296706,0.3442,2602.3,2602.2,9.65885075]
[1723902297002,0.3442,2602.3,2602.2,8.15039674]
[1723902297211,0.3442,2602.3,2602.2,9.65879036]
[1723902297706,0.3442,2602.3,2602.2,9.65901684]
[1723902298507,0.3442,2602.3,2602.2,8.15039674]
[1723902298704,1.107,2602.5,2602.4,1.44077]
[1723902298905,1.107,2602.5,2602.4,4.30706591]
[1723902299305,2.17868,2602.6,2602.4,4.67986591]
[1723902299306,0.738,2602.6,2602.4,4.67986591]
[1723902299508,0.738,2602.6,2602.5,1.34248227]
[1723902300213,0.738,2602.6,2602.5,2.78320227]
[1723902300408,0.738,2602.6,2602.5,1.34248227]
[1723902300718,0.738,2602.6,2602.5,1.00576504]
[1723902300915,0.738,2602.6,2602.5,1.34247192]
[1723902301100,0.738,2602.6,2602.5,9.65790299]
[1723902301101,0.3667,2602.6,2602.5,9.65790299]
[1723902301305,0.00576026,2602.8,2602.7,1.44061]
[1723902301513,0.00576026,2602.8,2602.7,6.92243744]
[1723902301807,0.00576026,2602.8,2602.7,20.11268945]
[1723902302008,0.00576026,2602.8,2602.7,19.06806039]
[1723902302310,0.00576026,2602.8,2602.7,19.06808924]
[1723902302514,0.00576026,2602.8,2602.7,21.07911806]
[1723902303006,0.00576026,2602.8,2602.7,14.06808924]
[1723902303317,0.00576026,2602.8,2602.7,20.109103]
[1723902303512,0.00576026,2602.8,2602.7,20.10871645]
[1723902304005,0.00576026,2602.8,2602.7,14.00171645]
[1723902304206,0.00576026,2602.8,2602.7,19.00171645]
[1723902304409,0.00576026,2602.8,2602.7,19.97194873]
[1723902304610,0.00576026,2602.8,2602.7,19.00163096]